Cogmind - Beta 11.1 @@@ ROGUE MODE // 2022.05.02 @ 13:20:38 Player: Decinym Result: Destroyed by 8R-AWN with 8R-AWN's Boregun Performance ------------- Evolutions (0) 0 Regions Visited (3) 600 Robots Destroyed (7) 35 Value Destroyed (137) 137 Prototype IDs (37) 740 Alien Tech Used (0) 0 Bonus (300) 300 TOTAL SCORE: 1812 Bonus ------- Aligned with FarCom 300 Cogmind --------- Core Integrity 0/250 Matter 37/300 Energy 265/265 System Corruption 0% Temperature Cool (2) Movement Treading (320) Ox2 Location -10/Exiles Parts ------- > --- POWER (1) -------- Improved Ion Engine > --- PROPULSION (2) --- Light Treads Light Treads > --- UTILITY (2) ------ Huge Storage Unit > --- WEAPON (2) ------- Light Assault Rifle > --- INVENTORY (25) --- Light Ion Engine Aluminum Leg Heat Sink Heat Sink Heat Sink Superbattery (1500) Experimental Sensor Array Medium Laser Beam Rifle Beam Rifle Beam Cannon Light Assault Rifle Peak State ------------ > --- POWER ------------ Ion Engine > --- PROPULSION ------- Light Treads Light Treads > --- UTILITY ---------- Huge Storage Unit Light Armor Plating > --- WEAPON ----------- Assault Rifle Light Assault Rifle > --- INVENTORY -------- Light Ion Engine Improved Ion Engine Improved Ion Engine Nuclear Core Light Fission Core Light Treads Light Treads Light Treads Aluminum Leg Heat Sink Heat Sink Heat Sink Superbattery Experimental Sensor Array Light Armor Plating Light Armor Plating Medium Laser Beam Rifle Beam Rifle Beam Cannon Assault Rifle Assault Rifle Light Assault Rifle Light Assault Rifle [Rating: 12] Favorites ----------- Power Ion Engine Engine Ion Engine Propulsion Light Treads Treads Light Treads Leg Aluminum Leg Utility Light Armor Plating Storage Huge Storage Unit Protection Light Armor Plating Weapon Light Assault Rifle Energy Gun Beam Rifle Ballistic Gun Light Assault Rifle Special Melee Weapon Datajack Build | -11 -10 -10 -10 ------- Run | Scr Mat Min Exi Slots Evolved . | . . . . Power . | . . . . Propulsion . | . . . . Utility . | . . . . Weapon . | . . . . Parts Attached 18 | . . 5 13 Power 2 | . . . 2 Engine 2 | . . . 2 Core . | . . . . Reactor . | . . . . Propulsion 6 | . . 3 3 Treads 6 | . . 3 3 Leg . | . . . . Wheel . | . . . . Hover . | . . . . Flight . | . . . . Utility 4 | . . 2 2 Device . | . . . . Storage 1 | . . 1 . Processor . | . . . . Hackware . | . . . . Protection 3 | . . 1 2 Artifact . | . . . . Weapon 6 | . . . 6 Energy Gun 1 | . . . 1 Energy Cannon . | . . . . Ballistic Gun 4 | . . . 4 Ballistic Cannon . | . . . . Launcher . | . . . . Special Weapon . | . . . . Impact Weapon . | . . . . Slashing Weapon . | . . . . Piercing Weapon . | . . . . Special Melee Weapon 1 | . . . 1 Unidentified Prototypes . | . . . . Parts Lost 12 | . . . 12 Power 2 | . . . 2 Propulsion 3 | . . . 3 Utility 3 | . . . 3 Weapon 4 | . . . 4 Highest Loss Streak 11 | . . . 11 To Critical Strikes 4 | . . . 4 Average Slot Usage (%) 97 | . 85 96 99 Engine 14 | . 14 14 14 Treads 24 | . . 23 27 Leg 3 | . 28 4 . Storage 14 | . 14 14 14 Protection 12 | . . 10 13 Ballistic Gun 25 | . 28 28 22 Special Melee Weapon 2 | . . . 4 Naked Turns . | . . . . Heaviest Build 93 | 13 13 91 93 Greatest Support 40 | 20 20 40 40 Greatest Overweight (x) 2 | . . 2 2 Average Overweight (x) 1 | . . . 2 Largest Inventory Capacity 25 | . 8 25 25 Average Capacity 19 | . 8 15 25 Most Carried 25 | . 8 23 25 Average Carried 18 | . 7 13 23 Final Capacity 25 | 8 8 25 25 Final Carried 23 | 6 7 23 12 Class Distribution -------------------- 98% | Mutant Dominant Class ---------------- Mutant | -10/Materials Mutant | -10/Mines Mutant | -10/Exiles Resources | -11 -10 -10 -10 ----------- Run | Scr Mat Min Exi Matter Collected 342 | 200 . 142 . Remotely . | . . . . Salvage Created 264 | . . 225 39 Parts 14 | . . 14 . Haulers Intercepted . | . . . . Recyclers Shooed . | . . . . Parts Field Recycled . | . . . . Retrieved Matter . | . . . . Parts Self-Destructed . | . . . . Prevented . | . . . . Kills | -11 -10 -10 -10 ------- Run | Scr Mat Min Exi Combat Hostiles Destroyed 11 | . . 8 3 Guns 11 | . . 8 3 Classes Destroyed 4 | . . 4 . Builder 1 | . . 1 . Swarmer 3 | . . 3 . Grunt 3 | . . 3 . Assembled 5 | . . 2 3 Best Kill Streak 3 | . . 3 3 Combat Bots Only 3 | . . 3 3 Max Kills in Single Turn 1 | . . 1 1 Gunslinging . | . . . . Exploded . | . . . . Melee . | . . . . Uniques/NPCs Destroyed . | . . . . Combat | -11 -10 -10 -10 -------- Run | Scr Mat Min Exi Damage Taken 1693 | . . 282 1411 Core 254 | . . 23 231 Absorbed by Shields . | . . . . Core Remaining (%) 100 | 100 . . . Volleys Fired 73 | . . 24 49 Largest 2 | . . 2 2 Hottest 76 | . . 40 76 Shots Fired 141 | . . 48 93 Gun 141 | . . 48 93 Cannon . | . . . . Launcher . | . . . . Special . | . . . . Kinetic 135 | . . 48 87 Thermal 6 | . . . 6 Explosive . | . . . . Electromagnetic . | . . . . Robot Hit Streak 23 | . . 12 23 Robot Miss Streak 4 | . . 4 2 Penetration Max . | . . . . Secondary Targets 3 | . . 3 . Max Gunslinging Chain 1 | . . 1 . Shots Hit Robots 111 | . . 27 84 Core Hits 32 | . . 17 15 Critical Kills . | . . . . Critical Parts Destroyed . | . . . . Critical Strikes . | . . . . Melee Attacks 5 | . . . 5 Impact . | . . . . Slashing . | . . . . Piercing . | . . . . Sneak Attacks 4 | . . . 4 Combat Hostiles . | . . . . Follow-up Attacks . | . . . . Damage Inflicted 1144 | . . 286 858 Guns 1144 | . . 286 858 Cannons . | . . . . Explosions . | . . . . Melee . | . . . . Ramming . | . . . . Kinetic 1112 | . . 286 826 Thermal 32 | . . . 32 Explosive . | . . . . Electromagnetic . | . . . . Impact . | . . . . Slashing . | . . . . Piercing . | . . . . Highest Corruption . | . . . . Average Corruption . | . . . . Corruption Purged . | . . . . Corruption Blocked . | . . . . Overload Shots . | . . . . Overflow Damage . | . . . . Projectiles . | . . . . Explosions . | . . . . Melee . | . . . . Knockbacks . | . . . . Impact . | . . . . Kinetic . | . . . . Secondary . | . . . . Self-Inflicted Damage . | . . . . Shots . | . . . . Rammed 1 | . . 1 . Targets Rammed 1 | . . 1 . Kicked . | . . . . Crushed . | . . . . Highest Temperature 72 | . . 13 72 Average Temperature 11 | . . 5 13 Received Heat Transfer 30 | . . 30 . Siege Activations . | . . . . Robots Corrupted . | . . . . Combat Hostiles . | . . . . Parts Fried . | . . . . Impact Corruptions . | . . . . Robots Melted . | . . . . Combat Hostiles . | . . . . Parts Melted . | . . . . Heat Transferred 92 | . . . 92 Parts Sabotaged . | . . . . Parts Stolen . | . . . . Parts Stripped . | . . . . Power Chain Reactions . | . . . . Missiles Intercepted . | . . . . Alert | -11 -10 -10 -10 ------- Run | Scr Mat Min Exi Peak Influence 83 | . 20 83 . Initial 7 | . . 7 . Average 18 | . 14 18 . Maximum Alert Level . | . . . . Low Security (%) 100 | . 100 100 . Level 1 . | . . . . Level 2 . | . . . . Level 3 . | . . . . Level 4 . | . . . . Level 5 . | . . . . High Security . | . . . . Max Security . | . . . . Squads Dispatched 1 | . . 1 . Investigation . | . . . . Extermination . | . . . . Reinforcement . | . . . . Assault 1 | . . 1 . Garrison . | . . . . Intercept . | . . . . Searches Triggered . | . . . . Construction Impeded . | . . . . Haulers Reinforced . | . . . . Active Scanning Responses . | . . . . Cargo Convoy Interrupts . | . . . . Stealth | -11 -10 -10 -10 --------- Run | Scr Mat Min Exi Distress Signals 2 | . . 2 . Communications Jammed . | . . . . Distress Signals . | . . . . Times Spotted 19 | . 3 9 7 Peak Tracking Total 9 | . 3 2 9 Tactical Retreats . | . . . . Traps | -11 -10 -10 -10 ------- Run | Scr Mat Min Exi Traps Triggered . | . . . . Indirectly . | . . . . Trap Hack Attempts . | . . . . Triggered . | . . . . Disarmed . | . . . . Reprogrammed . | . . . . Reused . | . . . . Traps Extracted . | . . . . Installed . | . . . . Triggered . | . . . . Exploded 3 | . . . 3 Machines | -11 -10 -10 -10 ---------- Run | Scr Mat Min Exi Machines Disabled 3 | . . . 3 Max in Single Turn 1 | . . . 1 Machines Sabotaged . | . . . . Garrisons Compromised . | . . . . Overloaded Fab Kills . | . . . . Hacking | -11 -10 -10 -10 --------- Run | Scr Mat Min Exi Machines Accessed 5 | . 2 1 2 Terminals 3 | . 2 1 . Fabricators . | . . . . Repair Stations . | . . . . Recycling Units . | . . . . Scanalyzers . | . . . . Garrison Access . | . . . . Total Hacks 9 | . 6 1 2 Successful 4 | . 1 1 2 Failed 5 | . 5 . . Catastrophic 1 | . 1 . . Database Lockouts . | . . . . Manual 5 | . 3 1 1 Terminals 7 | . 6 1 . Fabricators . | . . . . Repair Stations . | . . . . Recycling Units . | . . . . Scanalyzers . | . . . . Garrison Access . | . . . . Terminal Hacks 4 | . 1 1 2 Record 1 | . . . 1 Robot Analysis 1 | . 1 . . Zone Layout 1 | . . 1 . EX-Prototype ID Bank 1 | . . . 1 Fabricator Hacks . | . . . . Repair Station Hacks . | . . . . Recycling Unit Hacks . | . . . . Scanalyzer . | . . . . Garrison Access Hacks . | . . . . Unauthorized Hacks . | . . . . Terminals . | . . . . Fabricators . | . . . . Repair Stations . | . . . . Recycling Units . | . . . . Scanalyzers . | . . . . Garrison Access . | . . . . Data Cores Recovered . | . . . . Used . | . . . . Hacking Detections 3 | . 2 1 . Full Trace Events . | . . . . Feedback Events . | . . . . Feedback Blocked . | . . . . Robot Schematics Acquired . | . . . . Robots Built . | . . . . Authchips . | . . . . Time . | . . . . Total Robot Build Rating . | . . . . Part Schematics Acquired . | . . . . Parts Built . | . . . . Authchips . | . . . . Time . | . . . . Total Part Build Rating . | . . . . Parts Repaired . | . . . . Time . | . . . . Parts Recycled . | . . . . Recycled Matter . | . . . . Retrieved Matter . | . . . . Retrieved Components . | . . . . Parts Scanalyzed . | . . . . Part Schematics Acquired . | . . . . Parts Damaged . | . . . . Bothacking | -11 -10 -10 -10 ------------ Run | Scr Mat Min Exi Used RIF Installer . | . . . . Robots Hacked 4 | . . . 4 Non-combat 3 | . . . 3 Combat 1 | . . . 1 Robot Hacks Applied 4 | . . . 4 parse_system 4 | . . . 4 Relay Couplers Released . | . . . . Fabnet Peak Effective % . | . . . . Robots Rewired . | . . . . Allies Hacked . | . . . . Hacks Repelled . | . . . . Allies | -11 -10 -10 -10 -------- Run | Scr Mat Min Exi Total Allies 1 | . . 1 . Largest Group 1 | . . 1 1 Highest-Rated Group 31 | . . 31 31 Highest-Rated Ally 31 | . . 31 31 Total Orders . | . . . . Ally Attacks 1 | . . . 1 Total Damage . | . . . . Kills . | . . . . Allies Corrupted . | . . . . Allies Melted . | . . . . Intel | -11 -10 -10 -10 ------- Run | Scr Mat Min Exi Robot Analysis Total 1 | . 1 . . Derelict Logs Recovered 1 | . . 1 . Drone Launches . | . . . . Drone Recoveries . | . . . . Exploration | -11 -10 -10 -10 ------------- Run | Scr Mat Min Exi Turns Passed 3529 | . 147 1628 1754 Spaces Moved 1361 | 1 120 750 490 Core . | . . . . Treads 1020 | . . 530 490 Legs 341 | 1 120 220 . Wheels . | . . . . Hover . | . . . . Flight . | . . . . Fastest Speed 120 | 120 120 120 320 Average Speed 233 | 120 120 195 320 Slowest Speed 320 | 120 120 320 320 Overloaded Moves . | . . . . Propulsion Burnouts . | . . . . Robots Hopped . | . . . . Cave-ins Triggered . | . . . . Exploration Rate (%) 48 | 2 28 98 64 Regions Visited 3 Branch Regions 2 Pre-discovered Areas 1 | . . . 1 Known Exits Taken . | . . . . Unknown Exits Taken 3 | 1 1 1 . Scrap Searched 1 | . . 1 . Spaces Dug . | . . . . Terrain Destroyed . | . . . . Melee . | . . . . Projectile . | . . . . AOE . | . . . . Terrain Rammed . | . . . . Walls Destroyed . | . . . . Machines Disabled . | . . . . Actions | -11 -10 -10 -10 --------- Run | Scr Mat Min Exi Total 1581 | . 124 868 589 Wait 93 | . . 70 23 Move 1358 | . 119 749 490 Hop . | . . . . Pick Up 24 | . 3 17 4 Fast Attach 1 | . . 1 . Attach 10 | . . . 10 Detach . | . . . . Swap 7 | . . 4 3 Drop 9 | . 2 2 5 Fire 73 | . . 24 49 Melee 5 | . . . 5 Ram . | . . . . Kick . | . . . . Crush 1 | . . 1 . Escape Stasis . | . . . . Rewire . | . . . . Trap . | . . . . Miscellaneous . | . . . . Route ------- -11/Scrapyard -10/Materials -10/Mines (discovered 3 exits: [*Mat x2] / *Exi) -10/Exiles History --------- Turn | Location | Event 1 | -11/Scrapyard | Discovered new exit (range 0) 1 | -11/Scrapyard | Entered Materials 133 | -10/Materials | Discovered new exit (range 5) 148 | -10/Materials | Entered Mines 267 | -10/Mines | Deemed a non-threat by the Exiles lab entrance 301 | -10/Mines | Build established: Mutant 402 | -10/Mines | Discovered new exit (range 15) 428 | -10/Mines | Excavation squad dispatched 428 | -10/Mines | A large section of the Mines collapsed 1041 | -10/Mines | Learned Materials terminal intel 1041 | -10/Mines | Joined a pair of Derelicts in attacking an 0b10 outpost 1264 | -10/Mines | Discovered new exit (range 6) 1265 | -10/Mines | Met a Derelict testing a Signal Generator 1545 | -10/Mines | Found a damaged Exp. Sensor Array with a note attached 1551 | -10/Mines | Found Prototype Device 1760 | -10/Mines | Discovered new exit (range 5) 1776 | -10/Mines | Entered Exiles 1776 | -10/Exiles | Accompanied by 1 ally 1863 | -10/Exiles | Met 8R-AWN 1914 | -10/Exiles | Met EX-HEX 2010 | -10/Exiles | Met EX-BIN 2048 | -10/Exiles | Aligned with FarCom system 2052 | -10/Exiles | Given EX-Vault access code 2144 | -10/Exiles | Opened EX-Vault 2173 | -10/Exiles | Found Superbattery 2248 | -10/Exiles | Warned to stay clear of 0b10 Research branches 2622 | -10/Exiles | Met EX-DEC 3286 | -10/Exiles | Learned location of Zion (-7) 3309 | -10/Exiles | Attacked by the Exiles 3433 | -10/Exiles | Core integrity fell below 50% 3506 | -10/Exiles | Core integrity fell below 20% 3530 | -10/Exiles | Destroyed by 8R-AWN with 8R-AWN's Boregun Last Messages --------------- 03475_ HV Slug penetrates Earth. 03480_ HV Slug penetrates Wall. 03480_ Penetrated by HV Slug. 03480_ Imp. Ion Engine destroyed. 03484_ Penetrated by HV Slug. 03488_ HV Slug penetrates Wall. 03492_ Penetrated by HV Slug. 03492_ Critical hit (Destroy). 03492_ Penetrated by HV Slug. 03492_ Critical hit (Destroy). 03497_ Penetrated by HV Slug. 03509_ Assault Rifle destroyed. 03509_ Penetrated by HV Slug. 03511_ Destroyed 8R-AWN's Armor/TH. 03513_ HV Slug penetrates Earth. 03513_ Penetrated by HV Slug. 03525_ Assault Rifle destroyed. 03525_ Penetrated by HV Slug. 03525_ Lgt. Armor Plating destroyed. 03530_ Penetrated by HV Slug. Map ----- +----------------------------------------------------+ | ?????????????????????????????????????????????????? | | ?????????????????????????????????????????????????? | | ?????????????????????????????????????????????????? | | ?????????????????????????????????????????????????? | | ?????????????????????????????????????????????????? | | ?????????????????????????????????????????????????? | | ?????????????????????????????????????????????????? | | ?????????????????????????????????????????????????? | | ?????????????????????????????????????????????????? | | ?????????????????????????????????????????????????? | | ?????????????????????????????######??????????????? | | ??????????????? ######???????#!!! "#?????????????? | | ??????????????? #""#??????# "??????????????? | | ??????????????? ??????# "#?????????????? | | ??????????????? #????## ""#?????????????# | | ??????????????? #####" ""#???????????? | | ???????????????? ##" ""?????????????" | | ????????????????? #"" #??????????????" | | ??????????????????? #?????????????"" | | ?????????????????????# ##????????????"" | | ??????????????????????## "#???????????? | | ???????????????######## #####?????????" | | ???????????????# !!"""" %% ""#?????????# | | ???????????????#! g"###"" """##???### | | ???????????????#! #?##" "#####X# | | ???????????????#! @;#??#" ! | | ???????????????# !""""" ;;# #?#"# % %= | | ???????????????########;# #???#### * % | | ?????????????????????# # #??????### | | ?????????????????????# ?# #????????### % | | ????????????????????? ??# #??????????## | | ????????????????????#???# #???????????## | | ????????????????????????# #????????????##" | | ????????????????????????# #?????????????#"" | | ????????????????????????? ?????????????##" | | ????????????????????????? ?????????????#"" | | ????????????????????????? ????????????##""" | | ????????????????????????? ????????????#""" | | ????????????????????????? ????????????#""" | | ????????????????????????? ????????????#"" | | ????????????????????????? ????????????#""" | | ??????????????????????????????????????#"" | | ??????????????????????????????????????##"" | | ???????????????????????????????????????#"""" | | ???????????????????????????????????????## | | ????????????????????????????????????????#" | | ????????????????????????????????????????#"""" | | ????????????????????????????????????????#"" | | ????????????????????????????????????????#" | | ?????????????????????????????????????????""" | +----------------------------------------------------+ Best States ------------- Heat Dissipation 25 Energy Generation 12 Energy Capacity 265 Matter Stores 300 Matter Capacity 300 Sight Range 16 Terrain Scan Density 10 Armor Coverage 150 Evasion (%) 55 Recoil Reduction 2 Item Schematics ----------------- None Robot Schematics ------------------ None Fabricated ------------ Nothing Alien Tech Used ----------------- None Achievements -------------- None Challenges ------------ None Game ------ Seed ThrowingFusionMeganuke Manual? 0 Play Time 00:14:08 Cumulative 326.0 hours Start 2022.05.02 @ 13:11:06 End 2022.05.02 @ 13:20:38 Sessions 1 Manual Loads 0 Difficulty Rogue Special Mode None Game No. 357 Rogue 357 Adventurer 0 Explorer 0 Win Type - Total 28 Types 17/3/2/1/2/0/3/0/0 Lore% 86 Gallery% 84 Achievement% 80 Wizard Run 0 Options --------- ASCII 0 Keyboard 0 Movement Arrows Keybinds 0 Fullscreen 2 Font 18/SmallcapsGlow Map View 76x50 Tactical HUD 1 Map Filters NONE Filters NONE Steam 1 RUN: 85d739da-c398-4d1b-a956-d0a8dde0f3df